[Event "30th NATO Chess-ch 2019"]
[Site "Berlin"]
[Date "2019.09.14"]
[Round "1.26"]
[White "Keough, Robert"]
[Black "Ntalabiras, Spyros"]
[Result "0-1"]
[ECO "B25"]
[WhiteElo "2108"]
[BlackElo "1806"]
[Annotator "NA"]
[PlyCount "121"]
[EventDate "2019.09.16"]
[EventType "swiss"]
[EventCountry "GER"]
[SourceTitle "playchess.com"]
[Source "ChessBase"]
[SourceQuality "1"]
[TimeControl "40/7200:1800"]

1. e4 {[%emt 1:59:46]} c5 {[%emt 1:59:46]} 2. Nc3 {[%emt 1:59:51]} Nc6 {[%emt 1:59:28]} 3. g3 {[%emt 1:58:31]} g6 {[%emt 1:58:27]} 4. Bg2 {[%emt 1:58:24]} Bg7 {[%emt 1:58:22]} 5. d3 {[%emt 1:58:17]} d6 {[%emt 1:57:36]} 6. f4 {[%emt 1:57:36]} Nf6 {[%emt 1:58:10]} 7. Nf3 {[%emt 1:56:09]} O-O {[%emt 1:57:55]} 8. O-O {[%emt 1:56:44]} Bg4 {[%emt 1:56:44]} 9. h3 {[%emt 1:52:42]} Bxf3 {[%emt 1:52:42]} 10. Qxf3 {[%emt 1:50:20]} Nd4 {[%emt 1:44:42]} 11. Qd1 {[%emt 1:50:12]} e6 {[%emt 1:50:12]} 12. Ne2 {[%emt 1:48:39]} Nh5 {[%emt 1:38:46]} 13. Kh2 {[%emt 1:46:47]} Qd7 {[%emt 1:32:15]} 14. c3 {[%emt 1:32:15]} Nxe2 {[%emt 1:30:00]} 15. Qxe2 {[%emt 1:41:51]} f5 {[%emt 1:41:51]} 16. Be3 {[%emt 1:29:29]} Rae8 {[%emt 1:36:23]} 17. Rae1 {[%emt 1:22:37]} Nf6 {[%emt 1:31:11]} 18. Qc2 {[%emt 1:23:31]} h5 {[%emt 1:07:56]} 19. Bf2 {[%emt 1:21:13]} Qc7 {[%emt 1:03:14]} 20. Qb3 {[%emt 1:12:59]} Kh7 {[%emt 0:57:33]} 21. exf5 {[%emt 1:12:14]} exf5 {[%emt 0:55:53]} 22. Qxb7 {[%emt 0:55:53]} Qxb7 {[%emt 0:55:20]} 23. Bxb7 {[%emt 1:11:34]} Rxe1 {[%emt 0:47:48]} 24. Rxe1 {[%emt 1:11:26]} Rb8 {[%emt 1:11:26]} 25. Re7 {[%emt 0:47:40]} Kg8 {[%emt 1:10:23]} 26. Rc7 {[%emt 0:58:49]} Kf8 {[%emt 0:39:35]} 27. Rc8+ {[%emt 0:57:33]} Rxc8 {[%emt 0:57:33]} 28. Bxc8 {[%emt 0:57:28]} Nd5 {[%emt 0:38:42]} 29. Bb7 {[%emt 0:53:25]} Nb6 {[%emt 0:53:25]} 30. Bc6 {[%emt 0:37:30]} Ke7 {[%emt 0:34:04]} 31. g4 {[%emt 0:49:41]} fxg4 {[%emt 0:32:01]} 32. hxg4 {[%emt 0:49:35]} hxg4 {[%emt 0:30:01]} 33. Kg3 {[%emt 0:30:01]} Bf6 {[%emt 0:48:37]} 34. Kxg4 {[%emt 0:48:13]} Kf7 {[%emt 0:48:13]} 35. Kf3 {[%emt 0:25:42]} Ke6 {[%emt 0:45:33]} 36. Be3 {[%emt 0:24:24]} Nd5 {[%emt 0:44:59]} 37. Bd2 {[%emt 0:44:18]} Ne7 {[%emt 0:20:02]} 38. Ba4 {[%emt 0:20:02]} d5 {[%emt 0:43:25]} 39. Be3 {[%emt 0:42:23]} Kd6 {[%emt 0:13:38]} 40. Bd2 {[%emt 0:36:19]} Nf5 {[%emt 0:10:29]} 41. Be1 {[%emt 0:10:29]} Ne7 {[%emt 0:06:35]} 42. Kg4 {[%emt 0:06:35]} Nf5 {[%emt 0:01:10]} 43. Be8 {[%emt 0:01:10]} Ne7 {[%emt 0:56:49]} 44. Bg3 {[%emt 0:27:12]} Ke6 {[%emt 0:53:20]} 45. Bxg6 {[%emt 0:53:07]} Nxg6 {[%emt 0:24:05]} 46. f5+ {[%emt 0:24:05]} Kf7 {[%emt 0:23:58]} 47. fxg6+ {[%emt 0:52:57]} Kxg6 {[%emt 0:23:50]} 48. Bf2 {[%emt 0:52:12]} Be7 {[%emt 0:22:33]} 49. c4 {[%emt 0:51:53]} dxc4 {[%emt 0:18:54]} 50. dxc4 {[%emt 0:18:54]} Bd6 {[%emt 0:17:51]} 51. Bh4 {[%emt 0:17:51]} Bc7 {[%emt 0:14:37]} 52. Bg3 {[%emt 0:43:18]} Bxg3 {[%emt 0:13:44]} 53. Kxg3 {[%emt 0:13:44]} Kf5 {[%emt 0:43:14]} 54. Kf3 {[%emt 0:13:40]} Ke5 {[%emt 0:13:00]} 55. Ke3 {[%emt 0:42:11]} a5 {[%emt 0:12:16]} 56. Kd3 {[%emt 0:41:56]} a4 {[%emt 0:10:07]} 57. Kc3 {[%emt 0:41:28]} Ke4 {[%emt 0:08:30]} 58. b4 {[%emt 0:40:45]} axb3 {[%emt 0:06:24]} 59. Kxb3 {[%emt 0:06:24]} Kd4 {[%emt 0:38:36]} 60. a3 {[%emt 0:37:43]} Ke5 {[%emt 0:01:02]} 61. Ka4 {[%emt 0:37:26]} 0-1

[Event "30th NATO Chess-ch 2019"]
[Site "Berlin"]
[Date "2019.09.14"]
[Round "1.27"]
[White "Ivbulis, Martins"]
[Black "Cichy, Kamil"]
[Result "0-1"]
[ECO "A41"]
[WhiteElo "1795"]
[BlackElo "2106"]
[Annotator "NA"]
[PlyCount "88"]
[EventDate "2019.09.16"]
[EventType "swiss"]
[EventCountry "GER"]
[SourceTitle "playchess.com"]
[Source "ChessBase"]
[SourceQuality "1"]
[TimeControl "40/7200:1800"]

1. d4 {[%emt 1:59:52]} d6 {[%emt 1:59:42]} 2. Bf4 {[%emt 1:59:07]} c6 {[%emt 1:57:45]} 3. e3 {[%emt 1:57:45]} Nf6 {[%emt 1:54:54]} 4. h3 {[%emt 1:54:20]} Bf5 {[%emt 1:47:20]} 5. Bd3 {[%emt 1:50:12]} Bxd3 {[%emt 1:42:47]} 6. Qxd3 {[%emt 1:42:47]} Nbd7 {[%emt 1:41:49]} 7. Nf3 {[%emt 1:49:10]} Qa5+ {[%emt 1:49:10]} 8. Qc3 {[%emt 1:45:41]} Qa6 {[%emt 1:31:07]} 9. Nbd2 {[%emt 1:45:13]} Nd5 {[%emt 1:27:50]} 10. Qb3 {[%emt 1:44:52]} g6 {[%emt 1:15:30]} 11. Bh2 {[%emt 1:41:20]} Bg7 {[%emt 1:41:20]} 12. c4 {[%emt 1:38:09]} N5b6 {[%emt 1:07:42]} 13. O-O {[%emt 1:37:29]} O-O {[%emt 1:07:01]} 14. Rac1 {[%emt 1:07:01]} c5 {[%emt 1:01:12]} 15. d5 {[%emt 1:31:12]} Na4 {[%emt 1:00:00]} 16. Rc2 {[%emt 1:28:26]} Rab8 {[%emt 0:56:45]} 17. Qa3 {[%emt 1:21:53]} Nxb2 {[%emt 0:53:05]} 18. Qxa6 {[%emt 1:21:50]} bxa6 {[%emt 0:53:00]} 19. Nb3 {[%emt 1:21:37]} Rb4 {[%emt 0:49:47]} 20. Na5 {[%emt 0:49:47]} Nb8 {[%emt 0:44:58]} 21. Nd2 {[%emt 1:14:40]} Ra4 {[%emt 0:33:38]} 22. Ndb3 {[%emt 0:33:38]} Nd7 {[%emt 0:27:16]} 23. Rb1 {[%emt 1:12:00]} Nd3 {[%emt 1:12:00]} 24. Nc6 {[%emt 1:07:56]} Re8 {[%emt 0:24:44]} 25. Nba5 {[%emt 1:04:51]} Nb6 {[%emt 0:19:55]} 26. Rb3 {[%emt 0:19:55]} Nb4 {[%emt 0:18:32]} 27. Nxb4 {[%emt 0:18:32]} Rxa5 {[%emt 0:59:20]} 28. Nc6 {[%emt 0:57:02]} Ra4 {[%emt 0:57:02]} 29. Nxa7 {[%emt 0:50:23]} Nxc4 {[%emt 0:50:23]} 30. Nc6 {[%emt 0:49:55]} Na3 {[%emt 0:11:49]} 31. Re2 {[%emt 0:49:50]} Nb5 {[%emt 0:11:15]} 32. Bf4 {[%emt 0:11:15]} e6 {[%emt 0:07:23]} 33. dxe6 {[%emt 0:40:08]} fxe6 {[%emt 0:40:08]} 34. Rc2 {[%emt 0:39:43]} Kf7 {[%emt 0:39:43]} 35. Rd3 {[%emt 0:34:35]} e5 {[%emt 0:04:16]} 36. Bg5 {[%emt 0:34:04]} h6 {[%emt 0:04:00]} 37. Bd8 {[%emt 0:33:03]} Ke6 {[%emt 0:03:12]} 38. Bb6 {[%emt 0:30:37]} Rc8 {[%emt 0:02:09]} 39. Na7 {[%emt 0:26:36]} Nxa7 {[%emt 0:01:39]} 40. Bxa7 {[%emt 0:26:34]} c4 {[%emt 0:00:36]} 41. Rdc3 {[%emt 0:25:26]} Rc7 {[%emt 0:00:03]} 42. Bb6 {[%emt 0:25:12]} Rc6 {[%emt 0:55:12]} 43. Ba7 {[%emt 0:54:48]} d5 {[%emt 0:24:19]} 44. Re2 {[%emt 0:52:54]} Rb4 {[%emt 0:23:07]} 0-1

[Event "30th NATO Chess-ch 2019"]
[Site "Berlin"]
[Date "2019.09.14"]
[Round "1.28"]
[White "Onley, David E"]
[Black "Meiers, Gundars"]
[Result "1-0"]
[ECO "B82"]
[WhiteElo "2103"]
[BlackElo "1785"]
[Annotator "NA"]
[PlyCount "43"]
[EventDate "2019.09.16"]
[EventType "swiss"]
[EventCountry "GER"]
[SourceTitle "playchess.com"]
[Source "ChessBase"]
[SourceQuality "1"]
[TimeControl "40/7200:1800"]

1. e4 {[%emt 1:59:56]} c5 {[%emt 1:59:56]} 2. Nf3 {[%emt 1:59:48]} Nc6 {[%emt 1:59:48]} 3. d4 {[%emt 1:59:39]} cxd4 {[%emt 1:59:39]} 4. Nxd4 {[%emt 1:58:51]} e6 {[%emt 1:59:35]} 5. Nc3 {[%emt 1:59:15]} d6 {[%emt 1:57:54]} 6. Be3 {[%emt 1:58:29]} Nf6 {[%emt 1:57:30]} 7. f4 {[%emt 1:57:00]} Be7 {[%emt 1:57:00]} 8. Qf3 {[%emt 1:56:32]} O-O {[%emt 1:34:35]} 9. O-O-O {[%emt 1:34:35]} Nxd4 {[%emt 1:29:04]} 10. Rxd4 {[%emt 1:52:49]} Qa5 {[%emt 1:27:33]} 11. g4 {[%emt 1:43:31]} Bd7 {[%emt 1:14:13]} 12. g5 {[%emt 1:40:49]} Nxe4 {[%emt 1:07:33]} 13. Nxe4 {[%emt 1:32:48]} Qxa2 {[%emt 1:32:48]} 14. Bd3 {[%emt 1:28:38]} Bc6 {[%emt 0:58:36]} 15. Rg1 {[%emt 0:58:36]} f5 {[%emt 0:53:27]} 16. gxf6 Bxf6 {[%emt 0:52:37]} 17. Qh5 {[%emt 0:52:37]} Bxd4 {[%emt 1:09:29]} 18. Bxd4 {[%emt 1:08:08]} Rf5 {[%emt 1:08:08]} 19. Rxg7+ {[%emt 1:03:01]} Kf8 {[%emt 1:03:01]} 20. Qxh7 {[%emt 1:01:39]} Qa1+ {[%emt 0:18:52]} 21. Kd2 {[%emt 0:18:52]} Qa5+ {[%emt 0:18:22]} 22. Bc3 {[%emt 1:00:32]} 1-0

[Event "30th NATO Chess-ch 2019"]
[Site "Berlin"]
[Date "2019.09.14"]
[Round "1.29"]
[White "Geroly, Jozsef"]
[Black "Tocco, Paolo"]
[Result "0-1"]
[ECO "E16"]
[WhiteElo "1766"]
[BlackElo "2089"]
[Annotator "NA"]
[PlyCount "63"]
[EventDate "2019.09.16"]
[EventType "swiss"]
[EventCountry "GER"]
[SourceTitle "playchess.com"]
[Source "ChessBase"]
[SourceQuality "1"]
[TimeControl "40/7200:1800"]

1. Nf3 {[%emt 1:59:44]} b6 {[%emt 1:59:52]} 2. g3 {[%emt 1:59:27]} Bb7 {[%emt 1:59:46]} 3. Bg2 {[%emt 1:59:46]} e6 {[%emt 1:59:43]} 4. d4 {[%emt 1:59:08]} Nf6 {[%emt 1:59:08]} 5. c4 {[%emt 1:57:55]} Bb4+ {[%emt 1:56:52]} 6. Bd2 {[%emt 1:56:35]} Qe7 {[%emt 1:56:35]} 7. a3 {[%emt 1:56:05]} Bxd2+ {[%emt 1:56:05]} 8. Nbxd2 {[%emt 1:55:57]} O-O {[%emt 1:54:43]} 9. O-O {[%emt 1:55:46]} d6 {[%emt 1:55:46]} 10. Qc2 {[%emt 1:54:57]} c5 {[%emt 1:51:06]} 11. e4 {[%emt 1:52:47]} Nc6 {[%emt 1:45:45]} 12. d5 {[%emt 1:49:57]} Nd4 {[%emt 1:44:32]} 13. Nxd4 {[%emt 1:48:35]} cxd4 {[%emt 1:44:25]} 14. Qd3 {[%emt 1:44:25]} e5 {[%emt 1:43:04]} 15. b4 {[%emt 1:43:04]} Rac8 {[%emt 1:35:59]} 16. Rac1 {[%emt 1:35:59]} Ba6 {[%emt 1:30:31]} 17. Bh3 {[%emt 1:23:39]} Rc7 {[%emt 1:29:11]} 18. Rc2 {[%emt 1:23:24]} h5 {[%emt 1:22:12]} 19. f3 {[%emt 1:14:09]} h4 {[%emt 1:13:53]} 20. g4 {[%emt 1:07:45]} Bc8 {[%emt 1:05:13]} 21. Rfc1 {[%emt 0:54:43]} Nh5 {[%emt 0:54:43]} 22. Bf1 {[%emt 0:53:13]} Nf4 {[%emt 1:03:37]} 23. Qb3 {[%emt 0:53:02]} Qg5 {[%emt 0:51:44]} 24. h3 {[%emt 0:51:44]} d3 {[%emt 0:42:42]} 25. Rb2 {[%emt 0:51:21]} f5 {[%emt 0:36:18]} 26. exf5 {[%emt 0:49:21]} Bxf5 {[%emt 0:36:08]} 27. Ne4 {[%emt 0:36:08]} Bxe4 {[%emt 0:35:59]} 28. fxe4 {[%emt 0:47:13]} Nxh3+ {[%emt 0:35:49]} 29. Bxh3 {[%emt 0:46:06]} Qxc1+ {[%emt 0:46:06]} 30. Bf1 Qg5 31. Qd1 {e4} Z0 {d2 ---} 32. Qd2 0-1

[Event "30th NATO Chess-ch 2019"]
[Site "Berlin"]
[Date "2019.09.14"]
[Round "1.30"]
[White "Mestek, Igor"]
[Black "Voroblievas, Arturas"]
[Result "1-0"]
[ECO "C47"]
[WhiteElo "2087"]
[BlackElo "1762"]
[Annotator "NA"]
[PlyCount "58"]
[EventDate "2019.09.16"]
[EventType "swiss"]
[EventCountry "GER"]
[SourceTitle "playchess.com"]
[Source "ChessBase"]
[SourceQuality "1"]
[TimeControl "40/7200:1800"]

1. e4 {[%emt 1:59:52]} e5 {[%emt 1:59:52]} 2. Nc3 {[%emt 1:59:43]} Nf6 {[%emt 1:59:24]} 3. Nf3 {[%emt 1:59:29]} Nc6 {[%emt 1:59:29]} 4. d4 {[%emt 1:59:22]} exd4 {[%emt 1:56:16]} 5. Nxd4 {[%emt 1:59:11]} Bb4 6. Nxc6 {[%emt 1:56:16]} bxc6 {[%emt 1:57:39]} 7. Bd3 {[%emt 1:56:03]} O-O {[%emt 1:44:07]} 8. O-O {[%emt 1:55:48]} d6 {[%emt 1:55:48]} 9. Bd2 {[%emt 1:49:45]} Bg4 {[%emt 1:49:45]} 10. f3 {[%emt 1:48:15]} Bc5+ {[%emt 1:48:15]} 11. Kh1 {[%emt 1:48:07]} Be6 {[%emt 1:37:05]} 12. f4 {[%emt 1:37:05]} Ng4 {[%emt 1:32:03]} 13. Qe1 {[%emt 1:40:47]} Rb8 {[%emt 1:20:03]} 14. Qg3 {[%emt 1:20:03]} Rxb2 {[%emt 1:13:13]} 15. f5 {[%emt 1:13:13]} Nf2+ {[%emt 1:12:14]} 16. Rxf2 {[%emt 1:29:03]} Bxf2 {[%emt 1:29:03]} 17. Qxf2 {[%emt 1:28:56]} Qf6 {[%emt 1:08:05]} 18. Qxa7 {[%emt 1:22:11]} Bd7 {[%emt 1:03:37]} 19. Qxc7 {[%emt 1:14:26]} Rfb8 {[%emt 1:02:39]} 20. Qxd7 {[%emt 1:13:49]} Qxc3 {[%emt 1:13:49]} 21. Qd8+ {[%emt 1:13:20]} Rxd8 {[%emt 1:00:18]} 22. Bxc3 {[%emt 1:13:12]} Rb7 {[%emt 0:58:55]} 23. Kg1 {[%emt 0:58:55]} d5 {[%emt 0:56:09]} 24. exd5 {[%emt 0:56:09]} cxd5 {[%emt 1:04:59]} 25. a4 {[%emt 1:03:53]} Ra8 {[%emt 1:03:53]} 26. a5 {[%emt 1:02:32]} Rc7 {[%emt 0:48:05]} 27. Bd4 {[%emt 0:48:05]} f6 {[%emt 0:47:28]} 28. a6 {[%emt 1:01:16]} h6 {[%emt 0:45:38]} 29. Rb1 {[%emt 1:00:52]} Raa7 1-0

[Event "30th NATO Chess-ch 2019"]
[Site "Berlin"]
[Date "2019.09.17"]
[Round "2.2"]
[White "Tocco, Paolo"]
[Black "Helbig, Mark"]
[Result "0-1"]
[ECO "A03"]
[WhiteElo "2089"]
[BlackElo "2332"]
[Annotator "NA"]
[PlyCount "42"]
[EventDate "2019.09.16"]
[EventType "swiss"]
[EventCountry "GER"]
[SourceTitle "playchess.com"]
[Source "ChessBase"]
[SourceQuality "1"]
[TimeControl "40/7200:1800"]

1. f4 {[%emt 2:00:00]} d5 {[%emt 1:57:36]} 2. Nf3 {[%emt 1:59:08]} g6 {[%emt 1:59:08]} 3. g3 {[%emt 1:59:00]} Bg7 {[%emt 1:59:00]} 4. Bg2 {[%emt 1:58:55]} c6 {[%emt 1:55:54]} 5. d3 {[%emt 1:55:54]} Qb6 {[%emt 1:53:56]} 6. c3 {[%emt 1:55:49] A03: Bird's Opening with 1...d5} Nf6 {[%emt 1:49:42]} 7. e3 {[%emt 1:49:42]} Nbd7 {[%emt 1:52:12]} 8. Qe2 {[%emt 1:51:31]} O-O $146 {[%emt 1:51:31]} ({Predecessor:} 8... Qa6 9. O-O Nc5 10. Rd1 Bf5 11. Bf1 O-O 12. Na3 Rad8 13. h3 b5 {1-0 (52) Granda Zuniga,J (2609)-Glienke,M (2301) Porto Mannu 2008}) 9. e4 {[%emt 1:51:13]} dxe4 {[%emt 1:39:23]} 10. dxe4 {[%emt 1:51:07]} e5 {[%emt 1:28:42]} 11. Na3 {[%emt 1:40:12]} exf4 {[%emt 1:40:12]} 12. Nc4 {[%emt 1:38:03]} Qa6 {[%emt 1:38:03]} 13. e5 {[%emt 1:19:19]} Re8 {[%emt 1:29:06]} 14. gxf4 {[%emt 1:28:55]} Nd5 {[%emt 1:08:19]} 15. Nd6 {[%emt 1:24:43]} Qxe2+ {[%emt 1:07:25]} 16. Kxe2 {[%emt 1:24:41]} Re7 {[%emt 1:03:14]} 17. c4 {[%emt 1:13:38]} Nc7 {[%emt 0:55:39]} 18. b3 {[%emt 0:52:27]} f6 {[%emt 0:45:16]} 19. Ba3 $11 {[%emt 0:51:51]} c5 {[%emt 0:45:10]} 20. Bh3 {[%emt 0:35:32]} Ne6 {[%emt 0:38:07]} 21. Rad1 {[%emt 0:32:13]} Nxf4+ {[%emt 0:37:58] fxe5} 0-1

[Event "30th NATO Chess-ch 2019"]
[Site "Berlin"]
[Date "2019.09.17"]
[Round "2.3"]
[White "Hof - Van Run, Rieke"]
[Black "Binder, Tamas"]
[Result "0-1"]
[ECO "B13"]
[WhiteElo "2076"]
[BlackElo "2261"]
[Annotator "NA"]
[PlyCount "83"]
[EventDate "2019.09.16"]
[EventType "swiss"]
[EventCountry "GER"]
[SourceTitle "playchess.com"]
[Source "ChessBase"]
[SourceQuality "1"]
[TimeControl "40/7200:1800"]

1. e4 {[%emt 1:59:55]} c6 {[%emt 1:59:55]} 2. d4 {[%emt 1:58:47]} d5 {[%emt 1:58:50]} 3. exd5 {[%emt 1:58:50]} cxd5 {[%emt 1:58:45]} 4. Bd3 {[%emt 1:56:04]} Nf6 {[%emt 1:56:04]} 5. c3 {[%emt 1:58:16]} e6 {[%emt 1:57:45]} 6. Bf4 {[%emt 1:57:45] B13: Caro-Kann: Exchange Variation and Panov-Botvinnik Attack} Bd6 {[%emt 1:56:00]} 7. Bg5 {[%emt 1:56:00]} (7. Bxd6 Qxd6 8. Qc2 O-O 9. Nf3 b6 10. O-O Ba6 11. Bxa6 Nxa6 12. Nbd2 Nb8 13. Rae1 b5 {½-½ (40) Shubin,K (2359)-Khadzhiev,V (2208) St Petersburg 2017}) 7... Qb6 $146 {[%emt 1:54:24]} ({Predecessor:} 7... O-O 8. Nf3 Nbd7 9. Nbd2 b6 10. O-O Bb7 11. Re1 Qc7 {½-½ (26) Nyaruai,J (1673)-Rodriguez Arrieta,M (1943) Batumi 2018}) 8. Qc2 {[%emt 1:54:24]} h6 {[%emt 1:38:05]} 9. Bh4 {[%emt 1:33:56]} Bd7 {[%emt 1:52:22]} 10. Nd2 {[%emt 1:52:22]} Bb5 {[%emt 1:50:34]} ({Black should try} 10... Nc6 $15) 11. Bxb5+ {[%emt 1:18:19]} Qxb5 {[%emt 1:49:47]} 12. Bg3 {[%emt 1:18:04]} Bxg3 {[%emt 1:48:47]} 13. hxg3 {[%emt 1:48:47]} Qa6 {[%emt 1:45:59]} 14. Ne2 {[%emt 1:11:27]} Nbd7 {[%emt 1:11:27]} 15. Nf4 {[%emt 1:01:23]} O-O {[%emt 1:43:23]} 16. Nd3 {[%emt 0:56:50]} Rac8 {[%emt 1:37:43]} 17. O-O {[%emt 0:55:57]} Qd6 {[%emt 0:55:57]} 18. Rfe1 {[%emt 1:34:39]} Qc7 {[%emt 1:33:35]} 19. Qd1 {[%emt 1:33:35]} a5 {[%emt 1:30:09]} 20. a4 {[%emt 1:30:09]} Qc6 {[%emt 1:26:41]} 21. Qb3 {[%emt 0:28:25]} Rfd8 {[%emt 0:28:25]} 22. Re2 $11 {[%emt 0:18:10]} Qa6 {[%emt 1:17:43]} 23. Re3 {[%emt 0:12:25]} Ng4 {[%emt 1:14:26]} 24. Rf3 {[%emt 0:12:20]} f5 {[%emt 1:12:32]} 25. Re1 {[%emt 0:09:44]} Qc6 {[%emt 0:09:44]} 26. Nf1 {[%emt 1:10:49]} b6 {[%emt 1:08:35]} 27. Nh2 {[%emt 0:06:21]} Ngf6 {[%emt 0:06:21]} 28. Rfe3 {[%emt 0:06:03]} Re8 {[%emt 1:05:05]} 29. Nf3 {[%emt 0:04:48]} Nf8 {[%emt 1:02:19]} 30. Nfe5 {[%emt 0:03:51]} Qd6 {[%emt 0:03:51]} 31. Qd1 {[%emt 1:01:34]} g5 {[%emt 1:00:29]} 32. Qf3 {[%emt 0:02:43]} Rc7 {[%emt 0:57:34]} 33. g4 {[%emt 0:00:52]} f4 {[%emt 0:57:09]} 34. Nxf4 {[%emt 0:57:09]} gxf4 {[%emt 0:57:03]} 35. Qxf4 {[%emt 0:00:39]} Ne4 {[%emt 0:56:08]} 36. Rh3 {[%emt 0:00:14]} Rh7 {[%emt 0:00:14]} 37. Ree3 {[%emt 0:00:13]} Qe7 {[%emt 0:52:07]} 38. Rxh6 {[%emt 1:22:07]} Rxh6 {[%emt 0:29:59]} 39. Qxh6 {[%emt 0:29:59]} Qg5 40. c4 Rb8 41. Nc6 Nd2 42. Qg7+ 0-1

[Event "30th NATO Chess-ch 2019"]
[Site "Berlin"]
[Date "2019.09.17"]
[Round "2.4"]
[White "Sypien, Mateusz"]
[Black "Casteleijn, Diederick"]
[Result "1/2-1/2"]
[ECO "B30"]
[WhiteElo "2243"]
[BlackElo "2079"]
[Annotator "NA"]
[PlyCount "43"]
[EventDate "2019.09.16"]
[EventType "swiss"]
[EventCountry "GER"]
[SourceTitle "playchess.com"]
[Source "ChessBase"]
[SourceQuality "1"]
[TimeControl "40/7200:1800"]

1. e4 {[%emt 1:59:56]} c5 {[%emt 1:58:56]} 2. Nf3 {[%emt 1:58:56]} Nc6 {[%emt 1:58:47]} 3. Bb5 {[%emt 1:58:27]} Nf6 {[%emt 1:58:27]} 4. Nc3 {[%emt 1:58:31]} Qc7 {[%emt 1:58:03]} 5. O-O {[%emt 1:55:12]} Nd4 {[%emt 1:56:51]} 6. Bc4 {[%emt 1:51:23]} a6 {[%emt 1:51:23]} 7. a4 {[%emt 1:49:39]} e6 {[%emt 1:49:39]} 8. h3 {[%emt 1:38:46]} Be7 {[%emt 1:39:22]} 9. d3 {[%emt 1:35:30]} Nc6 {[%emt 1:35:30]} 10. Re1 {[%emt 1:33:23]} d6 $11 {[%emt 1:33:23]} 11. Bf4 {[%emt 1:31:21]} Nd7 {[%emt 1:27:43]} 12. Bg3 {[%emt 1:27:43]} O-O {[%emt 1:25:38]} 13. Ne2 {[%emt 1:15:54]} Rb8 {[%emt 1:15:54]} 14. c3 {[%emt 1:12:28]} b5 {[%emt 1:07:56]} 15. axb5 {[%emt 1:11:06]} axb5 {[%emt 1:07:50]} 16. Bb3 {[%emt 1:11:02]} b4 {[%emt 0:59:43]} 17. d4 {[%emt 1:05:04]} Na5 {[%emt 0:58:51]} 18. Bc2 {[%emt 0:58:51]} Nc4 {[%emt 0:50:01]} 19. Qc1 {[%emt 0:58:27]} Na5 {[%emt 0:38:51]} 20. Qd1 {[%emt 0:40:55]} Nc4 {[%emt 0:40:55]} 21. Qc1 {[%emt 0:37:09]} Na5 {[%emt 0:38:04]} 22. Qd1 {[%emt 0:37:48]} 1/2-1/2

[Event "30th NATO Chess-ch 2019"]
[Site "Berlin"]
[Date "2019.09.17"]
[Round "2.5"]
[White "Lakos, Nikoletta"]
[Black "Kraft, Chip"]
[Result "1/2-1/2"]
[ECO "B36"]
[WhiteElo "2226"]
[BlackElo "2050"]
[Annotator "NA"]
[PlyCount "84"]
[EventDate "2019.09.16"]
[EventType "swiss"]
[EventCountry "GER"]
[SourceTitle "playchess.com"]
[Source "ChessBase"]
[SourceQuality "1"]
[TimeControl "40/7200:1800"]

1. e4 {[%emt 1:59:38]} c5 {[%emt 1:59:52]} 2. Nf3 {[%emt 1:59:52]} g6 {[%emt 1:59:42]} 3. c4 {[%emt 1:59:42]} Nc6 {[%emt 1:57:58]} 4. d4 {[%emt 1:55:35]} cxd4 {[%emt 1:55:35]} 5. Nxd4 {[%emt 1:55:34]} Nf6 {[%emt 1:57:06]} 6. Nc3 {[%emt 1:57:06]} d6 {[%emt 1:54:02]} 7. f3 {[%emt 1:45:39]} Nxd4 {[%emt 1:45:39]} 8. Qxd4 {[%emt 1:45:33]} Bg7 {[%emt 1:45:33]} 9. Bg5 {[%emt 1:56:30]} O-O {[%emt 1:42:03]} 10. Qd2 {[%emt 1:40:59]} Be6 {[%emt 1:51:39]} 11. Rc1 {[%emt 1:51:39]} Qa5 {[%emt 1:42:58]} 12. b3 {[%emt 1:36:28]} Rfc8 {[%emt 1:38:48]} 13. Be2 {[%emt 1:31:47]} a6 $14 {[%emt 1:31:54]} 14. Nd5 {[%emt 1:19:48]} Qxd2+ {[%emt 1:31:20]} 15. Kxd2 {[%emt 1:19:42]} Bxd5 {[%emt 1:19:42]} 16. cxd5 {[%emt 1:30:59]} h6 {[%emt 1:29:40]} 17. Be3 {[%emt 1:15:19]} e6 {[%emt 1:23:33]} 18. dxe6 {[%emt 1:09:36]} fxe6 {[%emt 1:23:28]} 19. Bd3 {[%emt 0:56:35]} Kf7 {[%emt 1:22:30]} 20. Rxc8 {[%emt 0:42:48]} Rxc8 {[%emt 1:22:25]} 21. Rc1 {[%emt 0:42:41]} Rxc1 {[%emt 0:42:41]} 22. Kxc1 {[%emt 0:42:37]} g5 {[%emt 1:17:03]} 23. Kd2 {[%emt 1:17:03]} d5 {[%emt 0:37:25]} 24. Bf2 {[%emt 0:34:31]} Ke7 {[%emt 1:08:46]} 25. Bb1 {[%emt 0:26:43]} Kd7 {[%emt 1:00:55]} 26. Kd3 {[%emt 0:11:33]} dxe4+ {[%emt 0:50:46]} 27. fxe4 {[%emt 0:50:46]} Ng4 {[%emt 0:50:37]} 28. Bg1 {[%emt 0:11:12]} Be5 {[%emt 0:11:12]} 29. h3 {[%emt 0:10:52]} Nf6 {[%emt 0:10:52]} 30. Kc4 {[%emt 0:06:32]} Nh5 {[%emt 0:32:28]} 31. Bd3 {[%emt 0:06:23]} Nf4 {[%emt 0:29:18]} 32. Bf1 {[%emt 0:06:19]} Kc6 {[%emt 0:24:08]} 33. a4 {[%emt 0:24:08]} Bc7 {[%emt 0:16:16]} 34. b4 {[%emt 0:03:51]} Kd6 {[%emt 0:03:51]} 35. Bh2 {[%emt 0:03:15]} Bb6 {[%emt 0:04:29]} 36. Bxf4+ {[%emt 0:01:50]} gxf4 {[%emt 0:04:22]} 37. Be2 {[%emt 0:01:42]} Ke5 {[%emt 0:01:42]} 38. Bf3 {[%emt 0:01:28]} Be3 {[%emt 0:01:32]} 39. b5 {[%emt 0:01:08]} axb5+ {[%emt 0:01:05]} 40. axb5 {[%emt 0:00:56]} b6 {[%emt 0:00:18]} 41. Kd3 {[%emt 0:00:28]} Bf2 {[%emt 0:00:28]} 42. Kc4 {[%emt 0:00:04]} Kd6 1/2-1/2